bitfinex/quotes_BTCUSD_20250617
["timestamp","ask_amount","ask_price","bid_price","bid_amount"]
[1750119483625,0.062,106610.0,106600.0,0.23751979]
[1750119483852,0.07137936,106610.0,106600.0,0.23751979]
[1750119484099,0.08075864,106610.0,106600.0,0.23751979]
[1750119484770,0.07211985,106630.0,106620.0,0.21571856]
[1750119485013,0.37642217,106630.0,106620.0,0.21571874]
[1750119485267,0.00014198,106630.0,106620.0,0.29017722]
[1750119485947,0.00114198,106630.0,106620.0,0.29017722]
[1750119486626,0.00014198,106630.0,106620.0,0.29017722]
[1750119486843,0.00014198,106630.0,106620.0,0.29117722]
[1750119487065,0.00314198,106630.0,106620.0,0.29117722]
[1750119487294,0.00951958,106630.0,106620.0,0.29117722]
[1750119487737,0.21583987,106630.0,106620.0,0.19896116]
[1750119487971,0.27893987,106630.0,106620.0,0.47599874]
[1750119488189,0.10075362,106630.0,106620.0,0.47599874]
[1750119488410,0.36754483,106630.0,106620.0,0.002]
[1750119488624,0.36580447,106630.0,106620.0,0.19516]
[1750119488846,0.15948374,106630.0,106620.0,0.4202574]
[1750119489119,0.17997922,106630.0,106620.0,0.4202574]
[1750119489336,0.00014198,106630.0,106620.0,0.4202574]
[1750119489556,0.01125986,106630.0,106620.0,0.4202574]
[1750119489772,0.21758015,106630.0,106620.0,0.19516]
[1750119489986,0.21758015,106630.0,106620.0,0.40149999]
[1750119489987,0.27593979,106630.0,106620.0,0.40149999]
[1750119490236,0.02827497,106630.0,106620.0,0.42963605]
[1750119490442,0.02063755,106630.0,106620.0,0.42963605]
[1750119490654,0.00014198,106630.0,106620.0,0.42963605]
[1750119490870,0.00188234,106630.0,106620.0,0.42963605]
[1750119491087,0.00014198,106630.0,106620.0,0.72371496]
[1750119491296,0.00014198,106630.0,106620.0,0.42963605]
[1750119491523,0.00014198,106630.0,106620.0,0.4441769]
[1750119491744,0.00014198,106630.0,106620.0,1.23709757]
[1750119492618,0.00014198,106630.0,106620.0,1.23609757]
[1750119492881,0.00014198,106630.0,106620.0,1.23509757]
[1750119493098,0.00014198,106630.0,106620.0,1.23909757]
[1750119493318,0.00014198,106630.0,106620.0,1.24409757]
[1750119493771,0.00014198,106630.0,106620.0,0.69425866]
[1750119494002,0.00014198,106630.0,106620.0,0.8761369]
[1750119494222,0.00014198,106630.0,106620.0,1.17021581]
[1750119494438,0.00014198,106630.0,106620.0,0.5980169]
[1750119494654,0.00014198,106630.0,106620.0,0.84155605]
[1750119494868,0.00014198,106630.0,106620.0,1.13563496]
[1750119495535,0.00014198,106630.0,106620.0,0.84155605]
[1750119495751,0.00014198,106630.0,106620.0,1.24641757]
[1750119496194,0.00014198,106630.0,106620.0,1.27891757]
[1750119496443,0.00014198,106630.0,106620.0,1.35801757]
[1750119497794,0.00014198,106630.0,106620.0,1.30801757]
[1750119498036,0.00014198,106630.0,106620.0,0.3230969]
[1750119498249,0.00014198,106630.0,106620.0,0.50147605]
[1750119498489,0.00014198,106630.0,106620.0,0.8560169]
[1750119498954,0.00014198,106630.0,106620.0,1.15009581]
[1750119499177,0.00014198,106630.0,106620.0,1.24633757]
[1750119500102,0.00014198,106630.0,106620.0,1.24629757]
[1750119500356,0.00014198,106630.0,106620.0,0.95221866]
[1750119500845,0.01889728,106630.0,106620.0,0.5980169]
[1750119501080,0.02827497,106630.0,106620.0,0.5980169]
[1750119501313,0.29783597,106630.0,106620.0,0.29917722]
[1750119501545,0.29783597,106630.0,106620.0,0.47325981]
[1750119501546,0.28671809,106630.0,106620.0,0.47325981]
[1750119501773,0.28671809,106630.0,106620.0,0.46925981]
[1750119501996,0.28671809,106630.0,106620.0,0.005]
[1750119501997,0.56204153,106630.0,106620.0,0.005]
[1750119502234,0.65828329,106630.0,106620.0,0.19784]
[1750119502469,0.65828329,106630.0,106620.0,0.1978]
[1750119502700,0.65828329,106630.0,106620.0,0.1948]
[1750119502914,0.36420438,106630.0,106620.0,0.1948]
[1750119503163,0.36420438,106630.0,106620.0,0.005]
[1750119503388,0.65828329,106630.0,106620.0,0.1978]
[1750119503599,0.36420438,106630.0,106620.0,0.1978]
[1750119503818,0.36420438,106630.0,106620.0,0.005]
[1750119504039,0.65828329,106630.0,106620.0,0.19776]
[1750119504715,0.65828329,106630.0,106620.0,0.005]
[1750119505841,0.02813861,106610.0,106600.0,0.45851787]
[1750119506118,0.26583999,106620.0,106600.0,0.44913674]
[1750119506348,0.23689953,106610.0,106600.0,0.11464]
[1750119506572,0.26585917,106610.0,106600.0,0.31674086]
[1750119506794,0.25647946,106610.0,106600.0,0.30736]
[1750119507048,0.25647946,106610.0,106600.0,0.05938086]
[1750119507260,0.25647946,106610.0,106600.0,0.52307931]
[1750119507485,0.07825881,106610.0,106600.0,0.53245955]
[1750119507700,0.09701832,106610.0,106600.0,0.53245955]
[1750119507925,0.06837848,106620.0,106610.0,0.21573854]
[1750119508135,0.27645866,106620.0,106610.0,0.2157388]
[1750119508401,0.09651534,106620.0,106610.0,0.48243816]
[1750119508614,0.0888766,106620.0,106610.0,0.48243816]
[1750119508822,0.07949759,106620.0,106610.0,0.4730588]
[1750119509041,0.28583758,106620.0,106610.0,0.4730588]
[1750119509250,0.28509722,106620.0,106610.0,0.4730588]
[1750119509466,0.05733615,106620.0,106610.0,0.48243825]
[1750119509685,0.01137848,106620.0,106610.0,0.49181761]
[1750119509899,0.01137839,106620.0,106610.0,0.49181761]
[1750119510119,0.03013597,106620.0,106610.0,0.49181761]
[1750119510334,0.02075705,106620.0,106610.0,0.49177761]
[1750119510551,0.0395148,106620.0,106610.0,0.49177761]
[1750119510780,0.04889381,106620.0,106610.0,0.49177761]
[1750119510999,0.01037839,106620.0,106610.0,0.49177761]
[1750119511213,0.27434189,106630.0,106620.0,0.20633964]
[1750119511431,0.37058365,106630.0,106620.0,0.19696098]
[1750119511647,0.01875767,106620.0,106610.0,0.46463882]
[1750119511860,0.02813633,106620.0,106610.0,0.46463882]
[1750119512076,0.03751472,106620.0,106610.0,0.45425937]
[1750119512321,0.206359,106610.0,106600.0,0.05]
[1750119512534,0.64480022,106610.0,106600.0,0.05]
[1750119512750,0.35072131,106610.0,106600.0,0.24699803]
[1750119512979,0.15374176,106610.0,106600.0,0.05]
[1750119513211,0.19696116,106620.0,106600.0,0.26575878]
[1750119513435,0.24560767,106630.0,106610.0,0.48231763]
[1750119513699,0.116739,106620.0,106610.0,0.22511763]
[1750119513913,0.00174036,106620.0,106610.0,0.48227763]
[1750119514131,0.0187574,106620.0,106610.0,0.22511702]
[1750119514344,0.02813615,106620.0,106610.0,0.46451856]
[1750119514783,0.02049759,106620.0,106610.0,0.46451856]
[1750119515037,0.02987642,106620.0,106610.0,0.46451856]
[1750119515277,0.02813606,106620.0,106610.0,0.46451856]
[1750119515494,0.00174036,106620.0,106610.0,0.46451856]
[1750119515708,0.27374013,106630.0,106620.0,0.20633982]
[1750119515930,0.36998189,106630.0,106620.0,0.20633982]
[1750119516146,0.37098189,106630.0,106620.0,0.20633982]
[1750119516593,0.0767971,106630.0,106620.0,0.21571839]
[1750119516840,0.09555292,106630.0,106620.0,0.22509687]
[1750119517562,0.00114198,106630.0,106620.0,0.22509687]
[1750119518016,0.02927549,106630.0,106620.0,0.22509687]
[1750119518483,0.27768032,106630.0,106620.0,0.46337982]
[1750119518712,0.07899745,106630.0,106620.0,0.22509687]
[1750119518964,0.09949407,106630.0,106620.0,0.48513687]
[1750119519214,0.07035994,106630.0,106620.0,0.48213687]
[1750119519446,0.03094198,106630.0,106620.0,0.22509687]
[1750119519681,0.04969736,106630.0,106620.0,0.48509687]
[1750119520461,0.00951958,106630.0,106620.0,0.48509687]
[1750119520663,0.0095195,106630.0,106620.0,0.48509687]
[1750119520872,0.00014198,106630.0,106620.0,0.48509687]
[1750119521079,0.00014198,106630.0,106620.0,0.48309687]
[1750119521793,0.00951941,106630.0,106620.0,0.48309687]
[1750119521994,0.0188971,106630.0,106620.0,0.48309687]
[1750119522195,0.02827505,106630.0,106620.0,0.48309687]
[1750119522398,0.0188971,106630.0,106620.0,0.48309687]
[1750119522613,0.0188971,106630.0,106620.0,0.28135839]
[1750119522830,0.02827488,106630.0,106620.0,0.48305687]
[1750119523033,0.00951941,106630.0,106620.0,0.48305687]
[1750119523253,0.01125977,106630.0,106620.0,0.48305687]
[1750119523465,0.02063746,106630.0,106620.0,0.48305687]
[1750119523701,0.03001533,106630.0,106620.0,0.22609687]
[1750119523916,1.28803845,106630.0,106620.0,0.001]
[1750119524128,0.99221918,106630.0,106620.0,0.001]
[1750119524349,1.18742303,106630.0,106620.0,0.001]
[1750119524778,0.70110412,106630.0,106620.0,0.001]
[1750119525005,0.27661795,106620.0,106610.0,0.3985992]
[1750119525189,0.3634814,106620.0,106610.0,0.19224]
[1750119525369,0.35410283,106620.0,106610.0,0.19224]
[1750119526247,0.35410283,106620.0,106610.0,0.19324]
[1750119526719,0.35410283,106620.0,106610.0,0.19316]
[1750119527158,0.35410283,106620.0,106610.0,0.001]
[1750119530056,0.64818174,106620.0,106610.0,0.001]
[1750119530436,0.35410283,106620.0,106610.0,0.001]
[1750119531512,0.6573746,106620.0,106610.0,0.001]
[1750119532370,0.36329569,106620.0,106610.0,0.001]
[1750119532598,0.35410283,106620.0,106610.0,0.001]
[1750119533019,0.64818174,106620.0,106610.0,0.001]
[1750119534760,0.35410283,106620.0,106610.0,0.001]
[1750119534966,0.64818174,106620.0,106610.0,0.001]
[1750119536997,0.35410283,106620.0,106610.0,0.001]
[1750119537677,0.64818174,106620.0,106610.0,0.001]
[1750119537911,1.04788881,106620.0,106610.0,0.001]
[1750119538125,0.7538099,106620.0,106610.0,0.001]
[1750119538338,1.04788881,106620.0,106610.0,0.001]
[1750119538796,1.17998174,106620.0,106610.0,0.001]
[1750119539280,1.20804489,106620.0,106610.0,0.001]
[1750119539490,1.01624489,106620.0,106610.0,0.001]
[1750119539937,0.38890358,106630.0,106610.0,0.001]
[1750119539938,0.00953911,106630.0,106620.0,0.58568206]
[1750119540206,0.19692413,106640.0,106630.0,0.34]
[1750119540451,0.00174036,106650.0,106640.0,0.03454085]
[1750119540452,0.2255062,106650.0,106640.0,0.03454085]
[1750119540670,0.00984901,106650.0,106630.0,0.54631783]
[1750119540891,0.06527664,106640.0,106620.0,0.21571654]
[1750119541122,0.07465336,106640.0,106620.0,0.22509431]
[1750119541371,0.02049531,106630.0,106610.0,0.41377309]
[1750119541623,0.00174036,106630.0,106620.0,0.20633999]
[1750119541841,0.00174036,106630.0,106620.0,0.22509722]
[1750119542266,0.0954076,106640.0,106630.0,0.1969426]
[1750119542472,0.0934076,106640.0,106630.0,0.1969426]
[1750119542678,0.08403035,106640.0,106630.0,0.21569824]
[1750119542887,0.07465327,106640.0,106630.0,0.22507584]
[1750119543100,0.09340734,106640.0,106630.0,0.21569833]
[1750119543312,0.08403026,106640.0,106630.0,0.22507602]
[1750119543760,0.08403017,106640.0,106630.0,0.21569842]
[1750119543995,0.07465327,106640.0,106630.0,0.22507602]
[1750119544225,0.27157766,106640.0,106630.0,0.18756447]
[1750119544432,0.25282404,106640.0,106630.0,0.18756447]
[1750119545071,0.06617778,106630.0,106620.0,0.21571242]
[1750119545294,0.0568,106630.0,106620.0,0.22509108]
[1750119545539,0.02914036,106630.0,106620.0,0.22509108]
[1750119545985,0.08002486,106640.0,106630.0,0.20632055]
[1750119546211,0.06991708,106640.0,106630.0,0.20632038]
[1750119546419,0.07729407,106640.0,106630.0,0.20632055]
[1750119546641,0.08667132,106640.0,106630.0,0.20632064]
[1750119546919,0.08667132,106640.0,106630.0,0.20632047]
[1750119547168,0.05854036,106640.0,106630.0,0.22507602]
[1750119547420,0.001,106640.0,106630.0,0.22507602]
[1750119547641,0.01037664,106640.0,106630.0,0.22507602]
[1750119547891,0.01037672,106640.0,106630.0,0.22507602]
[1750119548131,0.01037672,106640.0,106630.0,0.20632064]
[1750119548132,0.06711708,106640.0,106630.0,0.20632064]
[1750119548345,0.06711708,106640.0,106630.0,0.22507611]
[1750119548585,0.07749398,106640.0,106630.0,0.22507611]
[1750119548802,0.07749398,106640.0,106630.0,0.21569859]
[1750119549032,0.07011708,106640.0,106630.0,0.23445406]
[1750119549555,0.08887097,106640.0,106630.0,0.21569859]
[1750119549782,0.07949389,106640.0,106630.0,0.23445406]
[1750119550005,0.07011708,106640.0,106630.0,0.23445406]
[1750119550221,0.06074036,106640.0,106630.0,0.23445406]
[1750119550445,0.03194036,106640.0,106630.0,0.23445406]
[1750119550667,0.04131691,106640.0,106630.0,0.23445406]
[1750119550878,0.00474036,106640.0,106630.0,0.23445406]
[1750119551514,0.01411691,106640.0,106630.0,0.23445406]
[1750119551751,0.02349372,106640.0,106630.0,0.23445406]
[1750119551957,0.00274036,106640.0,106630.0,0.23445406]
[1750119552170,0.02149363,106640.0,106630.0,0.23645406]
[1750119552610,0.03087053,106640.0,106630.0,0.23445406]
[1750119552819,0.0588,106630.0,106620.0,0.21571181]
[1750119553037,0.0588,106630.0,106620.0,0.2250902]
[1750119553514,0.10735876,106640.0,106630.0,0.21569807]
[1750119553731,0.00174036,106640.0,106630.0,0.21769807]
[1750119554168,0.00174036,106640.0,106630.0,0.21569807]
[1750119554608,0.01111691,106640.0,106630.0,0.21569807]
[1750119555040,0.01311691,106640.0,106630.0,0.21569807]
[1750119555261,0.01111691,106640.0,106630.0,0.21569807]
[1750119555709,0.02987045,106640.0,106630.0,0.21569807]
[1750119555964,0.09764753,106640.0,106630.0,0.22507602]
[1750119556187,0.08827045,106640.0,106630.0,0.22507602]
[1750119556632,0.09764726,106640.0,106630.0,0.22507602]
[1750119557066,0.08827036,106640.0,106630.0,0.22507602]
[1750119557758,0.09764744,106640.0,106630.0,0.22507602]
[1750119557981,0.09764744,106640.0,106630.0,0.21569842]
[1750119558193,0.05793325,106630.0,106620.0,0.19695502]
[1750119558418,0.0792553,106630.0,106620.0,0.21571278]
[1750119558644,0.00937831,106620.0,106610.0,0.54730889]
[1750119558869,0.28733697,106620.0,106610.0,0.001]
[1750119559084,0.07925723,106620.0,106610.0,0.18859966]
[1750119559299,0.37420068,106620.0,106610.0,0.001]
[1750119559513,0.36308175,106620.0,106610.0,0.001]
[1750119559847,0.65716066,106620.0,106610.0,0.001]
[1750119560270,0.55412175,106620.0,106610.0,0.001]
[1750119560692,0.36308175,106620.0,106610.0,0.003]
[1750119561185,0.37254044,106620.0,106610.0,0.19059966]
[1750119561378,0.37254044,106620.0,106610.0,0.20197955]
[1750119561600,0.37254044,106620.0,106610.0,0.005]
[1750119561809,0.36316161,106620.0,106610.0,0.005]
[1750119562452,0.36316161,106620.0,106610.0,0.19259966]
[1750119562675,0.36316161,106620.0,106610.0,0.01437989]
[1750119562883,0.36316161,106620.0,106610.0,0.21135935]
[1750119563083,0.36316161,106620.0,106610.0,0.20197955]
[1750119563291,0.36316161,106620.0,106610.0,0.21135935]
[1750119563503,0.36316161,106620.0,106610.0,0.20197964]
[1750119564110,0.36316161,106620.0,106610.0,0.20097964]
[1750119564696,0.36316161,106620.0,106610.0,0.004]
[1750119564897,0.35378251,106620.0,106610.0,0.004]
[1750119565358,0.35378251,106620.0,106610.0,0.01337998]
[1750119565725,0.35378251,106620.0,106610.0,0.004]
[1750119565929,0.16620045,106620.0,106610.0,0.21973854]
[1750119566133,0.38365937,106620.0,106610.0,0.21973872]
[1750119566403,0.38191901,106620.0,106610.0,0.21035935]
[1750119566538,0.37254044,106620.0,106610.0,0.20097955]
[1750119566744,0.37254044,106620.0,106610.0,0.004]
[1750119566957,0.84808052,106620.0,106610.0,0.004]
[1750119567159,0.65724052,106620.0,106610.0,0.004]
[1750119567346,0.55396161,106620.0,106610.0,0.004]
[1750119567957,0.36316161,106620.0,106610.0,0.004]
[1750119568178,0.55392161,106620.0,106610.0,0.01337998]
[1750119568377,0.55392161,106620.0,106610.0,0.20097964]
[1750119568596,0.55392161,106620.0,106610.0,0.01337998]
[1750119569016,0.36316161,106620.0,106610.0,0.004]
[1750119569235,0.55392161,106620.0,106610.0,0.004]
[1750119569439,0.36316161,106620.0,106610.0,0.004]
[1750119569656,0.55388161,106620.0,106610.0,0.01337989]
[1750119569856,0.55384161,106620.0,106610.0,0.004]
[1750119570073,0.55384161,106620.0,106610.0,0.01337998]
[1750119570504,0.36316161,106620.0,106610.0,0.004]
[1750119570667,0.65724052,106620.0,106610.0,0.19159966]
[1750119570875,0.65724052,106620.0,106610.0,0.004]
[1750119571098,0.36316161,106620.0,106610.0,0.004]
[1750119571923,0.65724052,106620.0,106610.0,0.004]
[1750119572618,0.84784052,106620.0,106610.0,0.004]
[1750119572829,1.18784052,106620.0,106610.0,0.004]
[1750119573052,0.21581924,106570.0,106560.0,0.1875952]
[1750119573251,0.01876761,106560.0,106550.0,0.27125376]
[1750119573464,0.01876673,106570.0,106560.0,0.55584003]
[1750119573690,0.02050621,106570.0,106560.0,0.22522379]
[1750119573884,0.02050621,106570.0,106560.0,0.56522379]
[1750119574095,0.22694301,106570.0,106560.0,0.19707206]
[1750119574310,0.28360265,106570.0,106560.0,0.21598227]
[1750119574556,0.02814882,106570.0,106560.0,0.21598165]
[1750119574768,0.01112307,106570.0,106560.0,0.21598165]
[1750119574986,0.01112307,106570.0,106560.0,0.21998165]
[1750119575400,0.08654671,106580.0,106570.0,0.20643663]
[1750119575619,0.08654671,106580.0,106570.0,0.21581951]
[1750119575620,0.00174036,106580.0,106570.0,0.21581951]
[1750119575860,0.4933,106610.0,106600.0,0.20637854]
[1750119576074,0.67638003,106610.0,106600.0,0.21575878]
[1750119576305,0.01875855,106610.0,106600.0,0.21575878]
[1750119576732,0.01852772,106620.0,106610.0,0.21573854]
[1750119576950,0.19435648,106620.0,106610.0,0.21573854]
[1750119577178,0.18497756,106620.0,106610.0,0.21588052]
[1750119577397,0.37541738,106620.0,106610.0,0.21588052]
[1750119577625,0.8477004,106620.0,106610.0,0.00014198]
[1750119577857,0.83832165,106620.0,106610.0,0.00952196]
[1750119578311,0.84432165,106620.0,106610.0,0.21588131]
[1750119578521,0.54424274,106620.0,106610.0,0.21588131]
[1750119578727,0.54824274,106620.0,106610.0,0.22526094]
[1750119579010,0.54824274,106620.0,106610.0,0.21588131]
[1750119579756,0.54824274,106620.0,106610.0,0.00014198]
[1750119580000,0.53886382,106620.0,106610.0,0.00952196]
[1750119580328,0.53886382,106620.0,106610.0,0.20650133]
[1750119580469,0.38879745,106620.0,106610.0,0.20650133]
[1750119580670,0.57937951,106620.0,106610.0,0.20650133]
[1750119580897,0.57000085,106620.0,106610.0,0.21588096]
[1750119581114,0.57000085,106620.0,106610.0,0.20650133]
[1750119581316,0.56062193,106620.0,106610.0,0.20650133]
[1750119581745,0.007,106620.0,106610.0,0.22526023]
[1750119581960,0.02575705,106620.0,106610.0,0.22526023]
[1750119582207,0.02749741,106620.0,106610.0,0.22526023]
[1750119582419,0.0274975,106620.0,106610.0,0.22526023]
[1750119582638,0.02575714,106620.0,106610.0,0.22526023]
[1750119582865,0.03687642,106620.0,106610.0,0.22526023]
[1750119583082,0.0244975,106620.0,106610.0,0.22526023]
[1750119583298,0.00574036,106620.0,106610.0,0.22526023]
[1750119583536,0.005,106620.0,106610.0,0.22526023]
[1750119583956,0.001,106620.0,106610.0,0.22526023]
[1750119584201,0.02049539,106630.0,106620.0,0.2157183]
[1750119584417,0.01875495,106630.0,106620.0,0.2157183]
[1750119584648,0.5512314,106640.0,106630.0,0.00937822]
[1750119584868,0.51205406,106640.0,106630.0,0.21569807]
[1750119585095,0.5214307,106640.0,106630.0,0.21569807]
[1750119585333,0.51205354,106640.0,106630.0,0.21569807]
[1750119585574,0.51205327,106640.0,106630.0,0.21569807]
[1750119586015,0.50267655,106640.0,106630.0,0.21569807]
[1750119586241,0.92589666,106640.0,106620.0,0.19008]
[1750119586456,0.92589666,106640.0,106610.0,0.06346198]
[1750119586457,0.25516098,106620.0,106610.0,0.06346198]
[1750119586688,0.83556165,106620.0,106610.0,0.00014198]
[1750119586901,1.17556165,106620.0,106610.0,0.00014198]
[1750119587333,1.17548165,106620.0,106610.0,0.00014198]
[1750119588217,0.88340274,106620.0,106610.0,0.00014198]
[1750119588432,1.27663087,106620.0,106610.0,0.00014198]
[1750119588660,0.69640274,106620.0,106610.0,0.00014198]
[1750119588881,1.18044165,106620.0,106610.0,0.00014198]
[1750119589763,0.88636274,106620.0,106610.0,0.00014198]
[1750119589986,1.18044165,106620.0,106610.0,0.00014198]
[1750119590422,0.69640274,106620.0,106610.0,0.00014198]
[1750119590649,0.54632274,106620.0,106610.0,0.00014198]
[1750119590856,0.54632274,106620.0,106610.0,0.18774164]
[1750119590857,0.20425892,106620.0,106610.0,0.18774164]
[1750119591077,0.005,106620.0,106610.0,0.29010924]
[1750119591304,0.005,106620.0,106610.0,0.58418815]
[1750119591977,0.003,106620.0,106610.0,1.03497076]
[1750119592206,0.02987062,106640.0,106630.0,0.21569807]
[1750119592415,0.05922867,106650.0,106640.0,0.20630112]
[1750119592625,0.44775479,106650.0,106640.0,0.20630129]
[1750119592846,0.02812867,106650.0,106640.0,0.21567828]
[1750119593071,0.03924549,106650.0,106640.0,0.22505518]
[1750119593281,0.02986903,106650.0,106640.0,0.23443146]
[1750119593576,0.01111612,106650.0,106640.0,0.23443146]
[1750119593763,0.98171905,106660.0,106650.0,0.21565744]
[1750119593764,0.75696978,106660.0,106650.0,0.21565744]
[1750119593990,0.75696978,106660.0,106650.0,0.55565744]
[1750119594651,0.75696978,106660.0,106650.0,0.6518992]
[1750119594872,0.75744295,106660.0,106650.0,0.68644005]
[1750119595089,0.75744295,106660.0,106650.0,0.98051896]
[1750119595315,0.75844295,106660.0,106650.0,0.98051896]
[1750119595532,0.75844295,106660.0,106650.0,0.68644005]
[1750119595762,0.75744295,106660.0,106650.0,0.98051896]
[1750119595971,0.75744295,106660.0,106650.0,0.68644005]
[1750119596187,0.75744295,106660.0,106650.0,0.98051896]
[1750119596413,0.75744295,106660.0,106650.0,0.68644005]
[1750119596634,0.75744295,106660.0,106650.0,0.76066877]
[1750119596875,0.75744295,106660.0,106650.0,0.68644005]
[1750119597093,0.75744295,106660.0,106650.0,0.68394005]
[1750119597319,0.75744295,106660.0,106650.0,1.04065896]
[1750119597563,0.18649892,106660.0,106650.0,1.30864768]
[1750119597790,0.18009892,106660.0,106650.0,1.58360768]
[1750119598242,0.18009892,106660.0,106650.0,1.33852877]
[1750119598462,0.18009892,106660.0,106650.0,1.63060768]
[1750119598684,0.18009892,106660.0,106650.0,2.37239468]
[1750119598904,0.18009892,106660.0,106650.0,1.19381896]
[1750119599134,0.18009892,106660.0,106650.0,1.42953896]
[1750119599373,0.18009892,106660.0,106650.0,1.68185896]
[1750119600053,0.18009892,106660.0,106650.0,1.46000877]
[1750119600275,0.18009892,106660.0,106650.0,1.72985896]
[1750119600495,0.18009892,106660.0,106650.0,1.73685896]
[1750119600746,0.18009892,106660.0,106650.0,3.26693796]
[1750119600971,0.18009892,106660.0,106650.0,2.06457896]
[1750119601194,0.18009892,106660.0,106650.0,1.97303896]
[1750119601633,0.18009892,106660.0,106650.0,1.74745896]
[1750119601855,0.18009892,106660.0,106650.0,0.68034005]
[1750119602076,0.18009892,106660.0,106650.0,1.61227811]
[1750119602304,0.18009892,106660.0,106650.0,1.61223811]
[1750119602534,0.18009892,106660.0,106650.0,1.42209896]
[1750119602748,0.18009892,106660.0,106650.0,1.61207811]
[1750119602977,0.18009892,106660.0,106650.0,1.65507811]
[1750119603663,0.18009892,106660.0,106650.0,1.37009896]
[1750119603881,0.18009892,106660.0,106650.0,0.9102392]
[1750119604112,0.18009892,106660.0,106650.0,0.5135592]
[1750119604113,0.20919892,106660.0,106650.0,0.5135592]
[1750119604334,0.20919892,106660.0,106650.0,0.8535592]
[1750119604583,0.23599892,106660.0,106650.0,0.3213992]
[1750119604809,0.23599892,106660.0,106650.0,0.21915744]
[1750119605023,0.2453738,106660.0,106650.0,0.41107744]
[1750119605236,0.23599892,106660.0,106650.0,0.41507744]
[1750119605911,0.25474912,106660.0,106650.0,0.56315744]
[1750119606134,0.25474912,106660.0,106650.0,0.55815744]
[1750119606360,0.26412453,106660.0,106650.0,0.74971744]
[1750119606572,0.24537389,106660.0,106650.0,0.74971744]
[1750119606800,0.23599892,106660.0,106650.0,0.75371744]
[1750119607039,0.23599892,106660.0,106650.0,0.75351744]
[1750119608154,0.24537389,106660.0,106650.0,0.56215744]
[1750119608414,0.25474903,106660.0,106650.0,0.56215744]
[1750119608659,0.55820335,106660.0,106650.0,0.75565762]
[1750119608868,0.56757884,106660.0,106650.0,0.75565762]
[1750119609075,0.75509055,106660.0,106650.0,0.75565771]
[1750119609279,0.26412435,106660.0,106650.0,0.76503355]
[1750119609499,0.24537389,106660.0,106650.0,0.76503355]
[1750119609724,0.25474894,106660.0,106650.0,0.76487355]
[1750119609946,0.26412417,106660.0,106650.0,0.76487355]
[1750119610395,0.23599892,106660.0,106650.0,0.76487355]
[1750119611127,0.2453738,106660.0,106650.0,0.82891355]
[1750119611342,0.23599892,106660.0,106650.0,0.57403355]
[1750119611560,0.23599892,106660.0,106650.0,0.82891355]
[1750119612214,0.24537389,106660.0,106650.0,0.82891355]
[1750119612414,0.74571523,106660.0,106650.0,0.54590567]
[1750119612638,0.74571523,106660.0,106650.0,0.75693806]
[1750119612639,0.55820352,106660.0,106650.0,0.75693806]
[1750119612867,0.23599892,106660.0,106650.0,0.77568992]
[1750119613491,0.24537389,106660.0,106650.0,0.77568992]
[1750119613698,0.23599892,106660.0,106650.0,0.77568992]
[1750119613905,0.24537371,106660.0,106650.0,0.77568992]
[1750119614537,0.23599892,106660.0,106650.0,0.77568992]
[1750119616477,0.74571523,106660.0,106650.0,0.41673815]
[1750119616698,0.55820352,106660.0,106650.0,0.4354901]
[1750119616927,0.5675791,106660.0,106650.0,0.43549028]
[1750119617137,0.75509081,106660.0,106650.0,0.42611391]
[1750119617666,0.4610119,106660.0,106650.0,0.43548984]
[1750119617865,0.5675791,106660.0,106650.0,0.43548984]
[1750119618091,0.24537371,106660.0,106650.0,0.4354894]
[1750119618306,0.23599892,106660.0,106650.0,0.4354894]
[1750119619142,0.23599892,106660.0,106650.0,0.2434094]
[1750119619342,0.23599892,106660.0,106650.0,0.4975294]
[1750119620189,0.20919892,106660.0,106650.0,0.8375294]
[1750119620422,0.18009892,106660.0,106650.0,0.8375294]
[1750119620629,0.18009892,106660.0,106650.0,1.24239092]
[1750119621062,0.18009892,106660.0,106650.0,1.53661964]
[1750119621252,0.18009892,106660.0,106650.0,1.16835201]
[1750119621462,0.18009892,106660.0,106650.0,1.46243092]
[1750119623252,0.23679892,106660.0,106650.0,0.2434094]
[1750119623381,0.24617389,106660.0,106650.0,0.4352494]
[1750119623623,0.26492444,106660.0,106650.0,0.21528178]
[1750119623831,0.63323207,106660.0,106650.0,0.42627355]
[1750119624079,0.63323207,106660.0,106650.0,0.77565001]
[1750119624217,0.2461738,106660.0,106650.0,0.77465001]
[1750119624860,0.23679892,106660.0,106650.0,0.77465001]
[1750119625023,0.23679892,106660.0,106650.0,0.58241001]
[1750119625257,0.23679892,106660.0,106650.0,0.83709001]
[1750119625427,0.24617371,106660.0,106650.0,0.83709001]
[1750119625640,0.26492391,106660.0,106650.0,0.58241001]
[1750119625865,0.26492391,106660.0,106650.0,0.83709001]
[1750119626118,0.24617371,106660.0,106650.0,0.83709001]
[1750119626281,0.25554868,106660.0,106650.0,0.83705001]
[1750119626498,0.26492382,106660.0,106650.0,0.83705001]
[1750119626667,0.23679892,106660.0,106650.0,0.83701001]
[1750119626869,0.24617389,106660.0,106650.0,0.58241001]
[1750119627096,0.24617389,106660.0,106650.0,0.83693001]
[1750119627477,0.26492453,106660.0,106650.0,0.83829001]
[1750119627997,0.23679892,106660.0,106650.0,0.83825001]
[1750119629009,0.23679892,106660.0,106650.0,0.83809001]
[1750119630422,0.18009892,106660.0,106650.0,1.24295153]
[1750119631051,0.18009892,106660.0,106650.0,1.52718025]
[1750119631937,0.16911165,106660.0,106650.0,0.89319262]
[1750119632189,0.16911165,106660.0,106650.0,1.43803153]
[1750119632418,0.16911165,106660.0,106650.0,1.51746025]
[1750119632666,0.16911165,106660.0,106650.0,1.51826025]
[1750119632893,0.16911165,106660.0,106650.0,1.53126025]
[1750119633352,0.16911165,106660.0,106650.0,1.52626025]
[1750119633582,0.16911165,106660.0,106650.0,1.44167153]
[1750119633838,0.16911165,106660.0,106650.0,1.44867153]
[1750119634082,0.16911165,106660.0,106650.0,1.20427153]
[1750119634309,0.16911165,106660.0,106650.0,1.45859153]
[1750119634765,0.0160773,106710.0,106700.0,0.21555656]
[1750119634991,0.07381927,106710.0,106700.0,0.80963656]
[1750119635210,0.07381927,106710.0,106700.0,0.65179832]
[1750119635463,0.07381927,106710.0,106700.0,0.90587832]
[1750119636855,0.07381927,106710.0,106700.0,0.90687832]
[1750119637297,0.07381927,106710.0,106700.0,1.12041917]
[1750119637526,0.01621927,106710.0,106700.0,0.87554176]
[1750119637762,0.01621927,106710.0,106700.0,1.42350067]
[1750119637980,0.01621927,106710.0,106700.0,1.12942176]
[1750119638217,0.02221448,106720.0,106700.0,0.99690679]
[1750119638452,0.97678733,106730.0,106720.0,1.94117802]
[1750119638689,0.0281,106780.0,106720.0,2.25475496]
[1750119638925,0.05647308,106780.0,106770.0,0.21541524]
[1750119639383,0.06583742,106780.0,106770.0,0.40741524]
[1750119639602,0.35055199,106780.0,106770.0,0.29292612]
[1750119639824,0.38801059,106780.0,106770.0,0.21541541]